bitfinex/quotes_SOLUSD_20240606
["timestamp","ask_amount","ask_price","bid_price","bid_amount"]
[1717664123641,9.99990678,173.03,173.01,5.78]
[1717664129919,9.99990678,173.03,173.02,5.78]
[1717664130631,9.99990678,173.05,173.02,5.78]
[1717664130818,9.99990678,173.05,173.04,5.78]
[1717664136025,9.99990678,173.05,173.04,25.78]
[1717664136651,9.99990678,173.07,173.04,25.78]
[1717664136947,9.99990678,173.07,173.06,5.78]
[1717664138745,9.99990678,173.07,173.06,25.78]
[1717664141427,9.99990678,173.07,173.06,20.0]
[1717664141627,9.99990678,173.07,173.06,5.78]
[1717664141838,9.99990678,173.07,173.06,25.78]
[1717664142041,9.99990678,173.07,173.06,20.0]
[1717664142253,9.99990678,173.07,173.06,25.78]
[1717664143456,9.99990678,173.07,173.06,5.78]
[1717664143743,9.99990678,173.07,173.06,25.78]
[1717664145659,0.03607684,173.08,173.06,25.78]
[1717664145837,0.03607684,173.08,173.07,5.78]
[1717664146037,9.99990678,173.07,173.06,20.0]
[1717664146537,9.99990678,173.07,173.06,25.78]
[1717664152741,9.99990678,173.07,173.06,20.0]
[1717664152935,9.99990678,173.07,173.06,25.78]
[1717664153564,9.99990678,173.07,173.06,20.0]
[1717664153746,9.99990678,173.07,173.06,25.78]
[1717664159775,9.99990678,173.07,173.06,20.0]
[1717664159961,9.99990678,173.07,173.06,25.78]
[1717664163380,9.99990678,173.07,173.06,20.0]
[1717664163676,9.99990678,173.07,173.06,5.78]
[1717664163868,9.99990678,173.07,173.06,25.78]
[1717664164646,9.99990678,173.07,173.06,27.9179]
[1717664166258,9.99990678,173.07,173.06,32.1938]
[1717664166745,9.99990678,173.07,173.06,38.6077]
[1717664168475,9.99990678,173.07,173.06,32.1938]
[1717664172459,9.99990678,173.07,173.06,38.6077]
[1717664175381,0.03607684,173.08,173.06,38.6077]
[1717664175382,0.03607684,173.08,173.07,12.827]
[1717664175578,0.03607684,173.08,173.07,38.607]
[1717664175958,0.03607684,173.08,173.07,52.9384]
[1717664177291,0.03607684,173.08,173.07,41.3784]
[1717664177494,0.03607684,173.08,173.07,40.7449]
[1717664181279,0.03607684,173.08,173.07,34.9649]
[1717664181485,0.03607684,173.08,173.07,40.7449]
[1717664183091,0.03607684,173.08,173.07,32.1935]
[1717664183679,0.03607684,173.08,173.07,26.4135]
[1717664183881,0.03607684,173.08,173.07,32.1935]
[1717664184070,0.03607684,173.08,173.07,12.1935]
[1717664184270,0.03607684,173.08,173.07,32.1935]
[1717664185285,0.03607684,173.08,173.07,22.1378]
[1717664185513,0.03607684,173.08,173.07,2.1378]
[1717664185685,0.03607684,173.08,173.07,7.9178]
[1717664185871,0.03607684,173.08,173.07,27.9178]
[1717664186795,9.87593072,173.1,173.07,27.9178]
[1717664187586,9.87593072,173.1,173.08,2.1377]
[1717664188080,9.87593072,173.1,173.07,22.1378]
[1717664188276,9.87593072,173.1,173.08,2.1377]
[1717664188596,16.33493072,173.1,173.08,2.1377]
[1717664188973,9.87593072,173.08,173.06,2.1379]
[1717664190688,9.87593072,173.08,173.05,5.78]
[1717664190689,16.41453072,173.08,173.05,5.78]
[1717664190898,16.41453072,173.08,173.04,2.1381]
[1717664190899,9.87593072,173.06,173.04,2.1381]
[1717664191887,9.87593072,173.06,173.05,2.1381]
[1717664193085,16.47263072,173.06,173.04,2.1381]
[1717664193280,11.79720785,173.06,173.02,3.02040084]
[1717664193609,9.87593072,173.03,173.02,2.1384]
[1717664194095,9.87593072,173.03,172.98,5.15930084]
[1717664194096,6.131,173.01,172.98,5.15930084]
[1717664194282,16.00693072,173.01,172.98,2.1389]
[1717664194482,16.00693072,173.01,172.99,2.1388]
[1717664195105,16.00693072,173.01,173.0,2.1387]
[1717664196402,16.00693072,173.01,172.99,2.1387]
[1717664196899,9.87593072,173.01,172.99,7.9187]
[1717664198014,9.87593072,173.01,172.99,2.1387]
[1717664198209,9.87593072,173.01,172.99,7.9187]
[1717664199305,9.87593072,173.01,172.99,2.1387]
[1717664199507,9.87593072,173.01,172.99,7.9187]
[1717664200716,9.87593072,173.01,172.99,5.78]
[1717664203909,9.87593072,173.01,172.98,2.1389]
[1717664204111,9.87593072,173.01,172.98,7.9189]
[1717664204924,2.1383,173.03,172.98,7.9189]
[1717664204925,9.87593072,172.99,172.98,7.9189]
[1717664208053,9.87593072,172.99,172.98,2.1389]
[1717664208404,9.87593072,172.99,172.98,7.9189]
[1717664210413,9.87593072,172.99,172.98,2.1389]
[1717664210911,9.87593072,172.99,172.98,7.9189]
[1717664212726,9.87593072,172.99,172.98,2.1389]
[1717664212933,9.87593072,172.99,172.98,7.9189]
[1717664214433,9.87593072,172.99,172.98,2.1389]
[1717664214610,9.87593072,172.99,172.98,7.9189]
[1717664215312,9.87593072,172.99,172.98,2.1389]
[1717664215550,9.87593072,172.99,172.97,27.919]
[1717664215731,9.87593072,172.99,172.98,2.1389]
[1717664220325,9.87593072,172.99,172.98,7.9189]
[1717664222039,9.87593072,172.99,172.98,2.1389]
[1717664222532,9.87593072,172.99,172.98,7.9189]
[1717664222922,9.87593072,172.99,172.98,2.1389]
[1717664224335,9.87593072,172.99,172.98,7.9189]
[1717664229138,9.87593072,173.01,172.98,10.0578]
[1717664229342,9.87593072,173.01,173.0,7.9187]
[1717664229922,9.87593072,173.03,173.01,2.1385]
[1717664230125,9.87593072,173.03,173.02,7.9184]
[1717664231025,9.87593072,173.03,173.02,2.1384]
[1717664231335,9.87593072,173.03,173.01,2.1385]
[1717664231720,9.87593072,173.03,173.02,5.78]
[1717664231921,9.87593072,173.03,173.01,2.1385]
[1717664232121,9.87593072,173.03,173.02,5.78]
[1717664233149,9.87593072,173.03,173.02,7.9184]
[1717664238237,9.87593072,173.05,173.04,2.1382]
[1717664238444,9.87593072,173.05,173.04,7.9182]
[1717664242832,9.87593072,173.05,173.04,2.1382]
[1717664243067,9.87593072,173.05,173.04,7.9182]
[1717664247038,9.87593072,173.05,173.04,2.1382]
[1717664248751,9.87593072,173.05,173.04,7.9182]
[1717664249849,9.87593072,173.05,173.04,2.1382]
[1717664250042,9.87593072,173.05,173.04,7.9182]
[1717664251234,9.87593072,173.05,173.04,2.1382]
[1717664251635,9.87593072,173.05,173.04,7.9182]
[1717664256367,9.87593072,173.05,173.04,2.1382]
[1717664256546,9.87593072,173.05,173.04,7.9182]
[1717664261348,9.87593072,173.05,173.04,2.1382]
[1717664261567,9.87593072,173.05,173.04,7.9182]
[1717664264065,9.87593072,173.05,173.04,2.1382]
[1717664264685,9.87593072,173.05,173.04,7.9182]
[1717664265058,9.87593072,173.05,173.04,2.1382]
[1717664265260,9.87593072,173.05,173.04,7.9182]
[1717664265472,9.87593072,173.05,173.04,2.1382]
[1717664265782,9.87593072,173.05,173.03,2.1382]
[1717664266581,9.87593072,173.05,173.04,2.1382]
[1717664267077,9.87593072,173.05,173.03,2.1383]
[1717664271258,9.87593072,173.05,173.04,2.1382]
[1717664273356,9.87593072,173.05,173.03,5.78]
[1717664273561,9.87593072,173.05,173.03,2.1383]
[1717664274674,9.87593072,173.05,173.04,2.1382]
[1717664275585,9.87593072,173.05,173.02,24.2769]
[1717664275586,9.87593072,173.05,173.03,2.1382]
[1717664275775,9.87593072,173.05,173.04,2.1382]
[1717664276077,54.87593072,173.05,173.03,2.1382]
[1717664276259,9.87593072,173.05,173.03,2.1382]
[1717664276465,9.87593072,173.05,173.03,7.9182]
[1717664279064,9.87593072,173.05,173.04,2.1382]
[1717664279578,9.87593072,173.05,173.04,7.9182]
[1717664285285,9.87593072,173.05,173.04,6.4146]
[1717664285484,9.87593072,173.05,173.04,12.1946]
[1717664285790,9.87593072,173.05,173.04,7.9182]
[1717664286686,9.87593072,173.09,173.04,12.206]
[1717664286880,9.87593072,173.09,173.08,5.78]
[1717664287084,9.87593072,173.09,173.08,7.9177]
[1717664290614,9.87593072,173.09,173.08,32.1931]
[1717664290783,9.87593072,173.09,173.08,12.1931]
[1717664290979,9.87593072,173.11,173.1,2.1374]
[1717664291180,9.87593072,173.11,173.1,7.9174]
[1717664292210,9.87593072,173.11,173.1,5.78]
[1717664292695,9.87593072,173.11,173.09,2.1375]
[1717664292897,9.87593072,173.11,173.1,5.78]
[1717664293118,9.87593072,173.11,173.1,7.9174]
[1717664293410,9.87593072,173.11,173.1,5.78]
[1717664294103,9.87593072,173.11,173.1,7.9174]
[1717664297805,9.87593072,173.11,173.1,5.78]
[1717664298128,9.87593072,173.11,173.1,7.9174]
[1717664299113,9.87593072,173.11,173.1,2.1374]
[1717664304592,9.87593072,173.14,173.11,2.1373]
[1717664304793,9.87593072,173.14,173.11,7.9173]
[1717664305392,9.87593072,173.14,173.11,5.78]
[1717664305804,9.87593072,173.12,173.11,5.78]
[1717664310419,9.87593072,173.12,173.1,2.1374]
[1717664310619,9.87593072,173.12,173.11,5.78]
[1717664314216,9.87593072,173.12,173.09,2.1375]
[1717664315325,9.87593072,173.12,173.08,22.1376]
[1717664315506,9.87593072,173.12,173.11,5.78]
[1717664316726,9.87593072,173.12,173.09,2.1375]
[1717664317017,9.87593072,173.1,173.09,5.78]
[1717664317213,9.87593072,173.1,173.08,2.1376]
[1717664317414,9.87593072,173.12,173.09,5.78]
[1717664317623,9.87593072,173.1,173.09,5.78]
[1717664317921,9.87593072,173.1,173.07,25.78]
[1717664318899,9.87593072,173.08,173.06,2.1379]
[1717664319095,9.87593072,173.1,173.06,7.9179]
[1717664319318,12.01343072,173.1,173.06,7.9179]
[1717664319523,12.01343072,173.1,173.06,2.1379]
[1717664319706,12.01343072,173.1,173.06,7.9179]
[1717664319907,9.87593072,173.08,173.06,7.9179]
[1717664320424,9.87593072,173.08,173.07,5.78]
[1717664324528,9.87593072,173.06,173.04,22.1382]
[1717664324735,9.87593072,173.08,173.05,25.78]
[1717664325030,9.87593072,173.08,173.05,7.918]
[1717664325207,9.87593072,173.06,173.05,7.918]
[1717664325402,9.87593072,173.06,173.05,27.918]
[1717664326433,9.87593072,173.06,173.05,22.138]
[1717664326617,9.87593072,173.06,173.05,27.918]
[1717664329940,9.87593072,173.06,173.05,32.1942]
[1717664332433,9.87593072,173.08,173.07,2.1378]
[1717664332635,9.87593072,173.08,173.07,7.9178]
[1717664332831,9.87593072,173.08,173.07,2.1378]
[1717664333019,9.87593072,173.08,173.07,7.9178]
[1717664334933,9.87593072,173.08,173.07,5.78]
[1717664335739,9.87593072,173.08,173.06,2.1379]
[1717664335939,9.87593072,173.08,173.07,5.78]
[1717664337442,9.87593072,173.08,173.07,7.9178]
[1717664339642,9.87593072,173.08,173.07,5.78]
[1717664340627,9.87593072,173.08,173.05,22.138]
[1717664340958,9.87593072,173.08,173.07,5.78]
[1717664345339,9.87593072,173.08,173.07,7.9178]
[1717664346039,9.87593072,173.1,173.09,2.1376]
[1717664346243,9.87593072,173.1,173.09,7.9176]
[1717664346637,9.87593072,173.1,173.09,5.78]
[1717664349044,9.87593072,173.1,173.07,2.1378]
[1717664349246,9.87593072,173.1,173.09,5.78]
[1717664349442,9.87593072,173.1,173.06,2.1379]
[1717664349653,9.87593072,173.1,173.09,5.78]
[1717664350253,9.87593072,173.1,173.06,22.1379]
[1717664350254,9.87593072,173.1,173.06,20.0]
[1717664350429,9.87593072,173.1,173.09,5.78]
[1717664351655,12.01333072,173.1,173.09,5.78]
[1717664352531,9.87593072,173.1,173.09,5.78]
[1717664353559,9.87593072,173.1,173.06,2.1379]
[1717664353744,9.87593072,173.1,173.09,5.78]
[1717664354568,9.87593072,173.08,173.06,2.1379]
[1717664354739,9.87593072,173.08,173.07,5.78]
[1717664355961,9.87593072,173.08,173.07,7.9178]
[1717664356149,9.87593072,173.08,173.07,2.1378]
[1717664356457,9.87593072,173.08,173.07,7.9178]
[1717664361957,9.87593072,173.1,173.08,2.1376]
[1717664364069,9.87593072,173.1,173.09,2.1376]
[1717664364273,9.87593072,173.1,173.09,7.9176]
[1717664365372,9.87593072,173.1,173.09,2.1376]
[1717664365586,9.87593072,173.1,173.09,7.9176]
[1717664366071,9.87593072,173.1,173.09,5.78]
[1717664366369,9.87593072,173.1,173.08,2.1376]
[1717664366548,9.87593072,173.1,173.09,5.78]
[1717664367170,9.87593072,173.1,173.09,7.9176]
[1717664368361,9.87593072,173.1,173.09,5.78]
[1717664369557,9.87593072,173.1,173.07,2.1377]
[1717664369876,9.87593072,173.1,173.09,5.78]
[1717664374080,9.87593072,173.1,173.08,2.1377]
[1717664374482,9.87593072,173.1,173.09,5.78]
[1717664376285,9.87593072,173.1,173.06,7.27783882]
[1717664376484,9.87593072,173.08,173.06,7.27783882]
[1717664376779,9.87593072,173.08,173.06,2.1379]
[1717664376955,9.87593072,173.08,173.07,5.78]
[1717664377357,9.87593072,173.08,173.07,7.9178]
[1717664383388,9.87593072,173.08,173.07,2.1378]
[1717664383585,9.87593072,173.08,173.07,7.9178]
[1717664385293,9.87593072,173.08,173.06,5.13983882]
[1717664385477,9.87593072,173.06,173.05,2.138]
[1717664385794,9.87593072,173.06,173.05,27.918]
[1717664389674,9.87593072,173.06,173.05,22.138]
[1717664389871,9.87593072,173.06,173.05,7.918]
[1717664390103,9.87593072,173.06,173.04,2.1382]
[1717664390397,9.87593072,173.06,173.05,7.9181]
[1717664390694,9.87593072,173.04,173.03,3.00193882]
[1717664390900,9.87593072,173.04,173.03,8.78193882]
[1717664391298,9.87593072,173.04,173.03,10.92013882]
[1717664391491,9.87593072,173.04,173.03,5.14013882]
[1717664391688,9.87593072,173.04,173.03,10.92013882]
[1717664395102,9.87593072,173.04,173.03,30.16523882]
[1717664395603,9.87593072,173.04,173.03,27.1633]
[1717664395805,9.87593072,173.04,173.03,47.1633]
[1717664396181,9.87593072,173.06,173.05,2.1381]
[1717664396390,9.87593072,173.06,173.05,7.9181]
[1717664400584,6.12,173.12,173.07,2.1378]
[1717664400585,9.87593072,173.08,173.07,2.1378]
[1717664400803,9.87593072,173.08,173.07,7.9178]
[1717664402000,9.87593072,173.08,173.07,5.78]
[1717664403911,9.87593072,173.08,173.07,7.9178]
[1717664404083,9.87593072,173.08,173.07,5.78]
[1717664404290,9.87593072,173.08,173.07,7.9178]
[1717664405489,9.87593072,173.08,173.07,12.1935]
[1717664405719,9.87593072,173.1,173.09,2.1376]
[1717664405919,9.87593072,173.11,173.09,5.78]
[1717664406093,9.87593072,173.13,173.12,2.1372]
[1717664406413,9.87593072,173.15,173.14,2.1369]
[1717664407119,9.87593072,173.15,173.14,7.9169]
[1717664409802,9.87593072,173.15,173.14,2.1369]
[1717664409987,9.87593072,173.15,173.14,7.9169]
[1717664410595,9.87593072,173.15,173.14,2.1369]
[1717664411024,9.87593072,173.15,173.14,7.9169]
[1717664411513,9.87593072,173.15,173.14,5.78]
[1717664412218,9.87593072,173.11,173.07,128.5514]
[1717664412423,9.87593072,173.11,173.08,2.1377]
[1717664412630,9.87593072,173.11,173.06,2.1378]
[1717664412804,9.87593072,173.11,173.09,5.78]
[1717664413230,12.01333072,173.11,173.04,10.6908]
[1717664413417,9.87593072,173.09,173.08,5.78]
[1717664414227,9.87593072,173.09,173.08,7.9177]
[1717664414406,9.87593072,173.09,173.08,14.3309]
[1717664414613,9.87593072,173.09,173.08,38.6063]
[1717664415118,9.87593072,173.09,173.08,147.1572]
[1717664415341,9.87593072,173.09,173.08,167.1572]
[1717664415700,6.4818,173.17,173.12,2.1371]
[1717664415928,6.4818,173.17,173.15,5.78]
[1717664416108,2.1365,173.18,173.15,5.78]
[1717664416430,2.1365,173.18,173.16,5.78]
[1717664416604,2.1363,173.19,173.17,5.78]
[1717664416802,6.299,173.2,173.17,5.78]
[1717664417006,2.1362,173.21,173.18,5.78]
[1717664418327,2.1361,173.21,173.18,5.78]
[1717664418506,0.3825125,173.22,173.18,5.78]
[1717664419031,2.1363,173.2,173.17,5.78]
[1717664419208,2.1363,173.2,173.15,2.1368]
[1717664419524,2.1363,173.2,173.17,5.78]
[1717664420008,2.1363,173.19,173.17,5.78]
[1717664420209,2.1363,173.19,173.16,5.78]
[1717664421130,47.1363,173.19,173.16,5.78]
[1717664421608,2.1363,173.19,173.16,5.78]
[1717664421808,4.05757713,173.19,173.16,5.78]
[1717664422308,4.05757713,173.19,173.14,2.1369]
[1717664422515,2.1363,173.19,173.15,2.1368]
[1717664422729,2.1363,173.19,173.16,5.78]
[1717664423222,47.1363,173.2,173.16,5.78]
[1717664423630,47.1363,173.2,173.16,7.9167]
[1717664424428,47.1363,173.2,173.16,5.78]
[1717664424608,4.05757713,173.19,173.16,5.78]
[1717664425007,4.05757713,173.19,173.15,2.1368]
[1717664425207,4.05757713,173.19,173.15,7.9168]
[1717664425616,2.1363,173.19,173.15,7.9168]
[1717664426130,2.1363,173.19,173.15,2.1368]
[1717664426334,2.1363,173.19,173.15,7.9168]
[1717664426527,47.1363,173.2,173.15,7.9168]
[1717664428130,2.1363,173.19,173.15,7.9168]
[1717664428315,45.0,173.2,173.16,5.78]
[1717664428821,47.1363,173.2,173.16,5.78]
[1717664429535,1.92127713,173.19,173.16,5.78]
[1717664430416,47.1363,173.2,173.16,5.78]
[1717664433248,47.1363,173.2,173.15,2.1368]
[1717664433535,1.92127713,173.19,173.16,5.78]
[1717664433735,1.92127713,173.19,173.13,2.137]
[1717664433910,4.05767713,173.19,173.15,5.78]
[1717664434119,2.1364,173.19,173.15,5.78]
[1717664434417,2.1364,173.19,173.15,7.9168]
[1717664434734,4.05767713,173.19,173.15,2.1368]
[1717664434913,4.05767713,173.19,173.15,7.9168]
[1717664435117,2.1364,173.19,173.15,5.78]
[1717664435448,47.1362,173.2,173.15,5.78]
[1717664435932,47.1362,173.2,173.13,10.6855]
[1717664435933,47.1362,173.2,173.16,7.9166]
[1717664436737,47.1362,173.2,173.16,5.78]
[1717664436935,45.0,173.2,173.16,5.78]
[1717664437145,45.0,173.2,173.16,7.9167]
[1717664437648,47.1362,173.2,173.16,7.9167]
[1717664439449,47.1362,173.2,173.16,5.78]
[1717664440247,45.0,173.2,173.16,5.78]
[1717664440427,4.05757713,173.19,173.16,5.78]
[1717664441948,2.1363,173.19,173.14,2.1369]
[1717664442130,2.1365,173.18,173.14,2.1369]
[1717664442329,2.1365,173.18,173.14,7.9169]
[1717664442647,2.1365,173.18,173.14,2.1369]
[1717664442944,2.1364,173.19,173.14,7.9169]
[1717664443146,2.1365,173.18,173.14,5.78]
[1717664443440,6.6552,173.19,173.14,10.0539]
[1717664443650,45.0,173.18,173.14,7.9169]
[1717664443949,47.1365,173.18,173.13,7.917]
[1717664444643,53.7918,173.18,173.13,7.917]
[1717664445352,53.7918,173.18,173.14,2.1369]
[1717664445535,53.7918,173.18,173.13,2.137]
[1717664445734,53.7918,173.18,173.14,2.1369]
[1717664446342,51.6552,173.18,173.14,2.1369]
[1717664446535,51.6552,173.18,173.14,7.9169]
[1717664446942,53.7917,173.18,173.14,7.9169]
[1717664447267,53.7917,173.18,173.14,2.1369]
[1717664447729,51.6552,173.18,173.14,2.1369]
[1717664448052,51.6552,173.18,173.14,7.9169]
[1717664448551,45.0,173.18,173.15,2.1368]
[1717664448756,47.1364,173.19,173.15,2.1368]
[1717664448950,2.1364,173.19,173.15,2.1368]
[1717664449435,2.1364,173.19,173.14,7.9169]
[1717664449636,2.1365,173.18,173.14,7.9169]
[1717664449850,2.1364,173.19,173.14,7.9169]
[1717664450832,2.1363,173.2,173.15,2.1368]
[1717664451156,2.1363,173.2,173.16,5.78]
[1717664451450,2.1363,173.2,173.16,7.9167]
[1717664451635,2.1363,173.2,173.17,5.78]
[1717664453135,55.6807,173.21,173.14,2.1369]
[1717664453361,2.1365,173.18,173.16,5.78]
[1717664453838,47.1364,173.19,173.16,5.78]
[1717664454037,47.1364,173.19,173.15,5.78]
[1717664454955,47.1364,173.19,173.15,7.9168]
[1717664455153,45.0,173.19,173.16,7.9166]
[1717664455656,45.0,173.19,173.16,5.78]
[1717664456037,47.1363,173.19,173.16,5.78]
[1717664456431,2.1363,173.19,173.15,7.9168]
[1717664456736,47.1363,173.2,173.15,7.9168]
[1717664456953,2.1363,173.19,173.15,7.9168]
[1717664457355,47.1363,173.2,173.15,7.9168]
[1717664457545,47.1363,173.2,173.16,5.78]
[1717664458136,47.1363,173.2,173.16,7.9167]
[1717664458465,47.1363,173.2,173.17,5.78]
[1717664458666,2.1363,173.2,173.17,5.78]
[1717664462256,2.1364,173.19,173.17,5.78]
[1717664462466,2.1363,173.2,173.17,5.78]
[1717664465066,45.0,173.21,173.17,7.9165]
[1717664465377,47.1362,173.21,173.18,5.78]
[1717664465964,2.1546125,173.22,173.18,5.78]
[1717664466166,2.1546125,173.22,173.19,5.78]
[1717664466539,2.1546125,173.22,173.18,2.1364]
[1717664466745,2.1546125,173.22,173.19,5.78]
[1717664468074,2.1361,173.21,173.19,5.78]
[1717664468755,2.1361,173.21,173.18,5.78]
[1717664471472,2.1362,173.21,173.18,5.78]
[1717664473074,0.0186125,173.22,173.18,5.78]
[1717664473075,2.1546125,173.22,173.18,7.9164]
[1717664473662,2.1546125,173.22,173.18,2.1364]
[1717664473875,2.1361,173.21,173.18,5.78]
[1717664476577,8.5275,173.2,173.16,2.1367]
[1717664476767,45.0,173.19,173.16,7.9167]
[1717664476965,47.1363,173.19,173.16,5.78]
[1717664477656,45.0,173.19,173.16,7.9167]
[1717664477856,1.92127713,173.18,173.11,10.6865]
[1717664478063,4.05777713,173.18,173.14,2.1369]
[1717664479082,45.0,173.17,173.14,7.9169]
[1717664479379,47.1364,173.19,173.14,7.9169]
[1717664481259,47.1364,173.19,173.15,2.1368]
[1717664482183,2.1365,173.18,173.14,2.1369]
[1717664482362,2.1365,173.18,173.14,7.9169]
[1717664482563,1.92127713,173.18,173.14,2.1369]
[1717664483075,1.92127713,173.18,173.14,7.9169]
[1717664483372,47.1364,173.19,173.14,7.9169]
[1717664483790,1.92127713,173.18,173.14,7.9169]
[1717664484159,45.0,173.19,173.07,146.12619288]
[1717664484490,45.0,173.19,173.08,4.2754]
[1717664484491,2.137,173.14,173.08,4.2754]
[1717664484671,2.1371,173.13,173.09,2.1375]
[1717664484874,2.1371,173.13,173.07,5.78]
[1717664484875,2.1374,173.11,173.07,5.78]
[1717664485064,46.92127713,173.12,173.07,2.1378]
[1717664485268,49.05857713,173.12,173.07,2.1378]
[1717664485474,49.05857713,173.12,173.08,2.1377]
[1717664485683,46.92127713,173.12,173.08,2.1377]
[1717664486085,45.0,173.12,173.08,7.9177]
[1717664486288,53.2788,173.13,173.08,7.9177]
[1717664487067,2.1372,173.12,173.07,2.1378]
[1717664487268,47.1372,173.12,173.07,2.1378]
[1717664487467,47.1372,173.12,173.07,7.9178]
[1717664487668,6.5062,173.12,173.08,2.1377]
[1717664487893,45.0,173.11,173.07,2.1377]
[1717664488280,1.92127713,173.1,173.06,2.1379]
[1717664488583,45.0,173.11,173.07,7.9178]
[1717664489578,47.1374,173.11,173.06,2.1379]
[1717664489780,4.05877713,173.1,173.06,5.78]
[1717664489981,45.0,173.09,173.06,5.78]
[1717664490292,45.0,173.09,173.05,2.138]
[1717664490800,45.0,173.09,173.05,7.918]
[1717664490976,1.92127713,173.08,173.05,7.918]
[1717664491179,1.92127713,173.08,173.05,2.138]
[1717664491389,51.3548,173.09,173.04,7.9181]
[1717664491588,51.3548,173.09,173.05,2.138]
[1717664492407,45.0,173.09,173.05,7.918]
[1717664492571,45.0,173.09,173.06,2.1379]
[1717664492895,45.0,173.09,173.06,7.9179]
[1717664493106,45.0,173.09,173.07,5.78]
[1717664494105,45.0,173.09,173.06,7.9179]
[1717664494490,45.0,173.09,173.06,5.78]
[1717664494979,45.0,173.09,173.05,7.918]
[1717664495371,45.0,173.09,173.06,5.78]
[1717664495799,45.0,173.09,173.06,7.9179]
[1717664496296,45.0,173.09,173.05,2.138]
[1717664496502,45.0,173.09,173.06,5.78]
[1717664497699,45.0,173.09,173.06,7.9179]
[1717664497873,2.1374,173.11,173.06,7.9179]
[1717664498078,47.1372,173.12,173.07,7.9178]
[1717664498309,2.1373,173.11,173.07,5.78]
[1717664498595,45.0,173.12,173.08,5.78]
[1717664498791,45.0,173.12,173.08,7.9176]
[1717664499094,47.1372,173.12,173.08,7.9176]
[1717664499486,45.0,173.12,173.08,7.9176]
[1717664499684,47.1372,173.12,173.08,5.78]
[1717664499989,47.1372,173.12,173.08,7.9177]
[1717664500179,47.1372,173.12,173.08,5.78]
[1717664500701,47.1372,173.12,173.09,5.78]
[1717664501802,45.0,173.12,173.09,5.78]
[1717664502097,47.1372,173.12,173.09,5.78]
[1717664502898,47.1372,173.12,173.07,2.1377]
[1717664503082,47.1372,173.12,173.08,5.78]
[1717664504013,47.1372,173.12,173.07,7.9177]
[1717664504896,47.1372,173.12,173.07,2.1377]
[1717664505107,47.1372,173.12,173.06,2.1379]
[1717664505108,2.1374,173.11,173.06,2.1379]
[1717664505401,2.1374,173.11,173.06,7.9179]
[1717664505898,2.1374,173.1,173.06,7.9179]
[1717664506089,2.1374,173.11,173.06,7.9179]
[1717664507202,4.05867713,173.11,173.06,7.9179]
[1717664507408,45.0,173.1,173.07,2.1378]
[1717664507785,47.1374,173.11,173.07,2.1378]
[1717664507981,1.92127713,173.1,173.07,2.1378]
[1717664508199,45.0,173.1,173.07,2.1378]
[1717664508510,45.0,173.1,173.06,2.1379]
[1717664508683,1.92127713,173.09,173.06,7.9179]
[1717664509078,1.92127713,173.09,173.06,2.1379]
[1717664509477,45.0,173.1,173.07,2.1378]
[1717664509690,45.0,173.11,173.07,2.1378]
[1717664509894,47.1374,173.11,173.06,7.9179]
[1717664510097,47.1374,173.11,173.05,2.138]
[1717664510098,4.05877713,173.1,173.05,2.138]
[1717664510425,45.0,173.09,173.05,2.138]
[1717664510584,53.4479,173.1,173.05,2.138]
[1717664513114,2.1376,173.09,173.05,2.138]
[1717664513285,47.1376,173.09,173.04,7.9181]
[1717664513487,1.92127713,173.08,173.04,2.1381]
[1717664513704,49.05897713,173.08,173.04,2.1381]
[1717664514006,47.1377,173.08,173.04,7.9181]
[1717664514216,2.1377,173.08,173.04,7.9181]
[1717664514508,8.74,173.08,173.04,2.1381]